fUSD/lending_fUSD_20241231
["ID","MTS","AMOUNT","RATE_DAILY","PERIOD"]
[347320043,1735685437982,-1434.62,0.0001129,2]
[347320044,1735685437992,-4895.96,0.0001129,2]
[347320045,1735685438002,-3987.06,0.0001129,2]
[347320046,1735685438011,-500.0,0.0001129,2]
[347320047,1735685438020,-500.0,0.0001129,2]
[347320048,1735685438029,-8416.18,0.00011291,2]
[347320049,1735685438038,-7084.81,0.00011291,2]
[347320050,1735685438047,-6043.18,0.00011291,2]
[347320051,1735685438057,-9999.99,0.00011291,2]
[347320052,1735685438068,-150.99,0.00011291,2]
[347320053,1735685438078,-1446.31,0.00011291,2]
[347320055,1735685438087,-10979.38,0.00011291,2]
[347320056,1735685438096,-529.39061882,0.00011291,2]
[347320057,1735685438106,-1454.38,0.00011291,2]
[347320058,1735685438115,-886.88,0.00011291,2]
[347320059,1735685438123,-500.0,0.00011291,2]
[347320060,1735685438133,-1643.47,0.00011291,2]
[347320061,1735685438142,-1463.79,0.00011291,2]
[347320062,1735685438151,-500.0,0.00011291,2]
[347320063,1735685438160,-1987.02,0.00011291,2]
[347320064,1735685438169,-1989.39,0.00011291,2]
[347320065,1735685438179,-1323.58,0.00011291,2]
[347320066,1735685438188,-859.03,0.00011291,2]
[347320067,1735685438197,-3114.11,0.00011291,2]
[347320068,1735685438207,-2900.18,0.00011291,2]
[347320069,1735685438216,-500.0,0.00011291,2]
[347320070,1735685438226,-520.28,0.00011291,2]
[347320071,1735685438235,-500.0,0.00011291,2]
[347320072,1735685438244,-4480.4,0.00011291,2]
[347320074,1735685438254,-500.0,0.00011291,2]
[347320076,1735685438263,-502.43,0.00011291,2]
[347320078,1735685438273,-500.0,0.00011291,2]
[347320080,1735685438282,-500.0,0.00011291,2]
[347320081,1735685438291,-500.0,0.00011291,2]
[347320082,1735685438300,-500.0,0.00011291,2]
[347320083,1735685438309,-500.0,0.00011291,2]
[347320084,1735685438318,-1746.18,0.00011291,2]
[347320085,1735685438327,-327.61857338,0.00011291,2]
[347320086,1735685438335,-1180.98,0.00011291,2]
[347320087,1735685438344,-885.6,0.00011291,2]
[347320088,1735685438353,-2351.56,0.00011291,2]
[347320089,1735685438362,-889.18,0.00011291,2]
[347320090,1735685438372,-6958.01,0.00011291,2]
[347320091,1735685438381,-500.0,0.00011291,2]
[347320092,1735685438390,-1247.01,0.00011291,2]
[347320093,1735685438400,-502.05344853,0.00011291,2]
[347320094,1735685438409,-500.0,0.00011291,2]
[347320095,1735685438418,-500.0,0.00011291,2]
[347320096,1735685438427,-2151.62,0.00011291,2]
[347320097,1735685438436,-500.0,0.00011291,2]
[347320098,1735685438445,-1153.52,0.00011291,2]
[347320099,1735685438455,-1456.86,0.00011291,2]
[347320100,1735685438464,-500.0,0.00011291,2]
[347320101,1735685438473,-500.0,0.00011291,2]
[347320102,1735685438482,-407.01364725,0.00011291,2]
[347320103,1735685438491,-1081.79,0.00011291,2]
[347320104,1735685438500,-2329.08,0.00011291,2]
[347320105,1735685438509,-715.2,0.00011291,2]
[347320106,1735685438518,-1072.01,0.00011291,2]
[347320107,1735685438527,-500.0,0.00011291,2]
[347320108,1735685438536,-550.55558541,0.00011291,2]
[347320109,1735685438546,-162.26312947,0.00011291,2]
[347320110,1735685438555,-500.0,0.00011291,2]
[347320111,1735685438564,-500.0,0.00011291,2]
[347320112,1735685438573,-1017.55,0.00011291,2]
[347320113,1735685438582,-500.0,0.00011291,2]
[347320114,1735685438591,-1776.28,0.00011291,2]
[347320115,1735685438600,-500.0,0.00011291,2]
[347320116,1735685438609,-16096.28,0.00011291,2]
[347320117,1735685438618,-2393.47,0.00011291,2]
[347320118,1735685438627,-500.0,0.00011291,2]
[347320119,1735685438636,-500.0,0.00011291,2]
[347320120,1735685438645,-2837.37446579,0.00011291,2]
[347320121,1735685438658,-1994.08905414,0.00011291,2]
[347320123,1735685439832,-1453.990171,0.00011291,2]
[347320124,1735685439844,-6848.17630907,0.00011291,2]
[347320125,1735685439852,-501.27730481,0.00011291,2]
[347320126,1735685439861,-1284.42,0.00011291,2]
[347320127,1735685439873,-583.94,0.00011291,2]
[347320128,1735685439882,-500.0,0.00011291,2]
[347320129,1735685439891,-500.0,0.00011291,2]
[347320130,1735685439900,-500.0,0.00011291,2]
[347320131,1735685439910,-2236.02,0.00011291,2]
[347320132,1735685439922,-2820.97,0.00011291,2]
[347320133,1735685439935,-500.0,0.00011291,2]
[347320134,1735685439947,-500.0,0.00011291,2]
[347320135,1735685439957,-500.0,0.00011291,2]
[347320136,1735685439966,-500.0,0.00011291,2]
[347320137,1735685439976,-500.0,0.00011291,2]
[347320138,1735685439985,-9376.84,0.00011291,2]
[347320139,1735685439994,-689.81,0.00011291,2]
[347320140,1735685440004,-507.41,0.00011291,2]
[347320141,1735685440013,-5838.25,0.00011291,2]
[347320142,1735685440022,-523.33,0.00011291,2]
[347320143,1735685440031,-555.3,0.00011291,2]
[347320144,1735685440040,-15960.21,0.00011291,2]
[347320145,1735685440049,-500.0,0.00011291,2]
[347320146,1735685440058,-500.0,0.00011291,2]
[347320147,1735685440067,-519.25,0.00011291,2]
[347320148,1735685440076,-500.0,0.00011291,2]
[347320149,1735685440085,-500.0,0.00011291,2]
[347320150,1735685440094,-8491.6,0.00011291,2]
[347320151,1735685440103,-1715.84,0.00011291,2]
[347320152,1735685440112,-7213.45,0.00011291,2]
[347320153,1735685440121,-547.18,0.00011291,2]
[347320154,1735685440131,-500.0,0.00011291,2]
[347320155,1735685440140,-1533.04,0.00011291,2]
[347320156,1735685440149,-702.12,0.00011291,2]
[347320157,1735685440158,-14290.55,0.00011291,2]
[347320158,1735685440167,-500.0,0.00011291,2]
[347320159,1735685440175,-1466.59,0.00011291,2]
[347320160,1735685440184,-783.39,0.00011291,2]
[347320161,1735685440193,-1581.03638612,0.00011291,2]
[347320162,1735685440204,-6664.5727,0.00011291,2]
[347320163,1735685440226,-3187.18179548,0.00011291,2]
[347320164,1735685440248,-3454.06841754,0.00011291,2]
[347320165,1735685440260,-502.73149638,0.00011291,2]
[347320166,1735685440271,-12438.08928184,0.00011291,2]
[347320199,1735685443573,-1390.0,0.00011291,2]
[347320200,1735685443584,-584.51248614,0.00011291,2]
[347320201,1735685443706,-717.8093996,0.00011291,2]
[347320202,1735685443717,-360.93814642,0.00011291,2]
[347320247,1735685446271,-5000.0,0.00011192,2]
[347320248,1735685446281,-17478.21989048,0.00011291,2]
[347320249,1735685446290,-500.0,0.00011291,2]
[347320250,1735685446300,-937.2,0.00011291,2]
[347320251,1735685446310,-1091.88,0.00011291,2]
[347320252,1735685446319,-500.0,0.00011291,2]
[347320253,1735685446329,-500.0,0.00011291,2]
[347320254,1735685446338,-1192.62,0.00011291,2]
[347320255,1735685446347,-500.0,0.00011291,2]
[347320256,1735685446356,-1612.56433685,0.00011291,2]
[347320257,1735685446367,-4249.91566315,0.00011291,2]
[347320258,1735685446376,-1794.65,0.00011291,2]
[347320259,1735685446385,-500.0,0.00011291,2]
[347320260,1735685446394,-576.93,0.00011291,2]
[347320261,1735685446403,-500.0,0.00011291,2]
[347320262,1735685446412,-969.92,0.00011291,2]
[347320263,1735685446421,-982.32,0.00011291,2]
[347320264,1735685446431,-1065.03,0.00011291,2]
[347320265,1735685446440,-8119.93,0.00011291,2]
[347320266,1735685446449,-566.2,0.00011291,2]
[347320267,1735685446458,-583.86,0.00011291,2]
[347320268,1735685446467,-500.0,0.00011291,2]
[347320269,1735685446477,-26058.56,0.00011291,2]
[347320270,1735685446486,-542.45,0.00011291,2]
[347320271,1735685446495,-500.0,0.00011291,2]
[347320272,1735685446503,-3825.34,0.00011291,2]
[347320273,1735685446512,-500.0,0.00011291,2]
[347320274,1735685446521,-500.0,0.00011291,2]
[347320275,1735685446530,-500.0,0.00011291,2]
[347320276,1735685446539,-1331.13,0.00011291,2]
[347320277,1735685446548,-8553.81,0.00011291,2]
[347320278,1735685446557,-500.0,0.00011291,2]
[347320279,1735685446566,-955.86,0.00011291,2]
[347320280,1735685446575,-963.78,0.00011291,2]
[347320281,1735685446584,-500.0,0.00011291,2]
[347320282,1735685446593,-500.0,0.00011291,2]
[347320283,1735685446602,-511.84,0.00011291,2]
[347320284,1735685446611,-500.0,0.00011291,2]
[347320285,1735685446620,-1299.23,0.00011291,2]
[347320286,1735685446630,-574.21,0.00011291,2]
[347320287,1735685446639,-500.0,0.00011291,2]
[347320288,1735685446647,-27789.06,0.00011291,2]
[347320289,1735685446656,-1128.58,0.00011291,2]
[347320290,1735685446665,-500.0,0.00011291,2]
[347320291,1735685446674,-1574.2,0.00011291,2]
[347320292,1735685446683,-500.0,0.00011291,2]
[347320293,1735685446692,-500.0,0.00011291,2]
[347320294,1735685446701,-537.78,0.00011291,2]
[347320295,1735685446710,-500.0,0.00011291,2]
[347320296,1735685446720,-3423.1,0.00011291,2]
[347320297,1735685446729,-2784.8,0.00011291,2]
[347320298,1735685446743,-500.0,0.00011291,2]
[347320299,1735685446752,-843.74,0.00011291,2]
[347320300,1735685446761,-500.0,0.00011291,2]
[347320301,1735685446770,-1327.22,0.00011291,2]
[347320302,1735685446781,-1108.98,0.00011291,2]
[347320303,1735685446790,-500.0,0.00011291,2]
[347320304,1735685446799,-500.0,0.00011291,2]
[347320305,1735685446809,-5598.77,0.00011291,2]
[347320306,1735685446819,-500.0,0.00011291,2]
[347320307,1735685446829,-3638.56,0.00011291,2]
[347320308,1735685446838,-1584.1,0.00011291,2]
[347320309,1735685446847,-500.0,0.00011291,2]
[347320310,1735685446856,-693.64,0.00011291,2]
[347320311,1735685446866,-500.0,0.00011291,2]
[347320312,1735685446875,-774.14,0.00011291,2]
[347320313,1735685446885,-500.0,0.00011292,2]
[347320314,1735685446895,-500.0,0.00011292,2]
[347320315,1735685446904,-650.48,0.00011292,2]
[347320316,1735685446914,-500.0,0.00011292,2]
[347320317,1735685446923,-2011.07,0.00011292,2]
[347320318,1735685446933,-500.0,0.00011292,2]
[347320319,1735685446943,-500.0,0.00011292,2]
[347320320,1735685446952,-500.0,0.00011292,2]
[347320321,1735685446962,-500.0,0.00011292,2]
[347320322,1735685446971,-4593.86,0.00011292,2]
[347320323,1735685446981,-500.0,0.00011292,2]
[347320324,1735685446990,-500.0,0.00011292,2]
[347320325,1735685447000,-1774.13,0.00011292,2]
[347320326,1735685447009,-500.0,0.00011292,2]
[347320327,1735685447019,-1824.63,0.00011292,2]
[347320328,1735685447028,-2950.92,0.00011292,2]
[347320329,1735685447038,-500.0,0.00011292,2]
[347320330,1735685447048,-500.0,0.00011292,2]
[347320331,1735685447057,-6293.27,0.00011292,2]
[347320332,1735685447066,-500.0,0.00011292,2]
[347320333,1735685447075,-1279.31,0.00011292,2]
[347320334,1735685447084,-500.0,0.00011292,2]
[347320335,1735685447094,-4568.14,0.00011292,2]
[347320336,1735685447103,-500.0,0.00011292,2]
[347320337,1735685447112,-500.0,0.00011292,2]
[347320338,1735685447121,-5273.65,0.00011292,2]
[347320339,1735685447130,-1324.63,0.00011292,2]
[347320340,1735685447139,-500.0,0.00011292,2]
[347320341,1735685447149,-3595.47,0.00011292,2]
[347320342,1735685447158,-2103.8,0.00011292,2]
[347320343,1735685447168,-500.0,0.00011292,2]
[347320344,1735685447177,-853.15,0.00011292,2]
[347320345,1735685447187,-3004.01,0.00011292,2]
[347320346,1735685447196,-500.0,0.00011292,2]
[347320347,1735685447205,-500.0,0.00011292,2]
[347320348,1735685447215,-2389.22,0.00011292,2]
[347320349,1735685447226,-500.0,0.00011292,2]
[347320350,1735685447235,-1055.03,0.00011292,2]
[347320351,1735685447245,-500.0,0.00011292,2]
[347320352,1735685447255,-500.0,0.00011292,2]
[347320353,1735685447264,-587.69,0.00011292,2]
[347320354,1735685447274,-500.0,0.00011292,2]
[347320355,1735685447283,-5005.76,0.00011292,2]
[347320356,1735685447293,-500.0,0.00011292,2]
[347320357,1735685447302,-500.0,0.00011292,2]
[347320358,1735685447311,-4443.71,0.00011292,2]
[347320359,1735685447320,-500.0,0.00011292,2]
[347320360,1735685447329,-500.0,0.00011292,2]
[347320361,1735685447338,-500.0,0.00011292,2]
[347320362,1735685447347,-2445.76,0.00011292,2]
[347320363,1735685447356,-500.0,0.00011292,2]
[347320364,1735685447365,-2124.32,0.00011292,2]
[347320365,1735685447374,-1848.45,0.00011292,2]
[347320366,1735685447383,-500.0,0.00011292,2]
[347320367,1735685447393,-500.0,0.00011292,2]
[347320368,1735685447402,-500.0,0.00011292,2]
[347320369,1735685447411,-500.0,0.00011292,2]
[347320370,1735685447420,-500.0,0.00011292,2]
[347320371,1735685447430,-5553.4,0.00011292,2]
[347320372,1735685447440,-599.38,0.00011292,2]
[347320373,1735685447450,-500.0,0.00011292,2]
[347320374,1735685447459,-500.0,0.00011292,2]
[347320375,1735685447468,-500.0,0.00011292,2]
[347320376,1735685447477,-1046.01,0.00011292,2]
[347320377,1735685447486,-500.0,0.00011292,2]
[347320378,1735685447495,-500.0,0.00011292,2]
[347320379,1735685447505,-500.0,0.00011292,2]
[347320380,1735685447513,-5408.22,0.00011292,2]
[347320381,1735685447522,-500.0,0.00011292,2]
[347320382,1735685447531,-500.0,0.00011292,2]
[347320383,1735685447541,-1577.08,0.00011292,2]
[347320384,1735685447550,-500.0,0.00011292,2]
[347320385,1735685447559,-500.0,0.00011292,2]
[347320386,1735685447567,-1319.37,0.00011292,2]
[347320387,1735685447576,-500.0,0.00011292,2]
[347320388,1735685447585,-500.0,0.00011292,2]
[347320389,1735685447594,-706.27,0.00011292,2]
[347320390,1735685447603,-500.0,0.00011292,2]
[347320391,1735685447612,-1135.27,0.00011292,2]
[347320392,1735685447621,-1768.08,0.00011292,2]
[347320393,1735685447630,-500.0,0.00011292,2]
[347320394,1735685447639,-500.0,0.00011292,2]
[347320395,1735685447648,-1049.27,0.00011292,2]
[347320396,1735685447658,-975.72,0.00011292,2]
[347320397,1735685447668,-500.0,0.00011292,2]
[347320398,1735685447679,-500.0,0.00011292,2]
[347320399,1735685447688,-1345.16,0.00011292,2]
[347320400,1735685447697,-500.0,0.00011292,2]
[347320401,1735685447707,-500.0,0.00011292,2]
[347320402,1735685447717,-620.53,0.00011292,2]
[347320403,1735685447726,-500.0,0.00011292,2]
[347320404,1735685447740,-1399.47,0.00011292,2]
[347320405,1735685447751,-3418.02,0.00011292,2]
[347320406,1735685447760,-500.0,0.00011292,2]
[347320407,1735685447771,-500.0,0.00011292,2]
[347320408,1735685447782,-2761.55,0.00011292,2]
[347320409,1735685447791,-5476.14,0.00011292,2]
[347320410,1735685447800,-500.0,0.00011292,2]
[347320411,1735685447810,-500.0,0.00011292,2]
[347320412,1735685447822,-5124.87,0.00011292,2]
[347320413,1735685447831,-2007.11,0.00011292,2]
[347320414,1735685447840,-500.0,0.00011292,2]
[347320415,1735685447849,-500.0,0.00011292,2]
[347320416,1735685447858,-2192.85,0.00011292,2]
[347320417,1735685447867,-500.0,0.00011292,2]
[347320418,1735685447875,-500.0,0.00011292,2]
[347320419,1735685447885,-4153.75,0.00011292,2]
[347320420,1735685447893,-2600.79,0.00011292,2]
[347320421,1735685447902,-500.0,0.00011292,2]
[347320422,1735685447911,-1391.96,0.00011292,2]
[347320423,1735685447920,-533.8,0.00011292,2]
[347320424,1735685447929,-6187.54,0.00011292,2]
[347320425,1735685447938,-500.0,0.00011292,2]
[347320426,1735685447947,-500.0,0.00011292,2]
[347320427,1735685447956,-1693.75,0.00011292,2]
[347320428,1735685447966,-2498.31,0.00011292,2]
[347320429,1735685447976,-12275.68,0.00011292,2]
[347320430,1735685447985,-500.0,0.00011292,2]
[347320431,1735685447994,-2023.84,0.00011292,2]
[347320432,1735685448003,-500.0,0.00011292,2]
[347320433,1735685448012,-6773.77,0.00011292,2]
[347320434,1735685448021,-500.0,0.00011292,2]
[347320435,1735685448030,-500.0,0.00011292,2]
[347320436,1735685448039,-500.0,0.00011292,2]
[347320437,1735685448048,-3422.34,0.00011292,2]
[347320438,1735685448058,-500.0,0.00011292,2]
[347320439,1735685448067,-4856.32,0.00011292,2]
[347320440,1735685448076,-378.15710267,0.00011292,2]
[347320441,1735685448085,-500.0,0.00011292,2]
[347320442,1735685448095,-3402.49,0.00011292,2]
[347320443,1735685448104,-788.86,0.00011292,2]
[347320444,1735685448113,-500.0,0.00011292,2]
[347320445,1735685448123,-9676.25,0.00011292,2]
[347320446,1735685448132,-500.0,0.00011292,2]
[347320447,1735685448141,-2785.64,0.00011292,2]
[347320448,1735685448150,-1902.48,0.00011292,2]
[347320449,1735685448159,-500.0,0.00011292,2]
[347320450,1735685448168,-2924.56,0.00011292,2]
[347320451,1735685448177,-2653.78,0.00011292,2]
[347320452,1735685448186,-500.0,0.00011292,2]
[347320453,1735685448195,-500.0,0.00011292,2]
[347320454,1735685448204,-6745.39,0.00011292,2]
[347320455,1735685448213,-2623.47,0.00011292,2]
[347320456,1735685448223,-500.0,0.00011292,2]
[347320457,1735685448232,-500.0,0.00011292,2]
[347320458,1735685448241,-500.0,0.00011292,2]
[347320459,1735685448251,-2369.63,0.00011292,2]
[347320460,1735685448260,-500.0,0.00011292,2]
[347320461,1735685448269,-500.0,0.00011292,2]
[347320462,1735685448278,-866.18,0.00011292,2]
[347320463,1735685448288,-500.0,0.00011292,2]
[347320464,1735685448297,-4359.88,0.00011292,2]
[347320465,1735685448307,-1492.77,0.00011292,2]
[347320466,1735685448316,-500.0,0.00011292,2]
[347320467,1735685448326,-500.0,0.00011292,2]
[347320468,1735685448337,-2160.2,0.00011292,2]
[347320469,1735685448346,-1793.54,0.00011292,2]
[347320470,1735685448356,-500.0,0.00011292,2]
[347320471,1735685448365,-500.0,0.00011292,2]
[347320472,1735685448374,-500.0,0.00011292,2]
[347320473,1735685448384,-620.21,0.00011292,2]
[347320474,1735685448392,-500.0,0.00011292,2]
[347320475,1735685448401,-5644.87,0.00011292,2]
[347320476,1735685448410,-500.0,0.00011292,2]
[347320477,1735685448419,-1513.91,0.00011292,2]
[347320478,1735685448428,-500.0,0.00011292,2]
[347320479,1735685448437,-10444.64,0.00011292,2]
[347320480,1735685448446,-3437.81,0.00011292,2]
[347320481,1735685448455,-500.0,0.00011292,2]
[347320482,1735685448464,-3480.58,0.00011292,2]
[347320483,1735685448474,-500.0,0.00011292,2]
[347320484,1735685448483,-5738.68,0.00011292,2]
[347320485,1735685448495,-500.0,0.00011292,2]
[347320486,1735685448504,-4845.01,0.00011292,2]
[347320487,1735685448514,-3119.04,0.00011292,2]
[347320488,1735685448523,-500.0,0.00011292,2]
[347320489,1735685448532,-500.0,0.00011292,2]
[347320490,1735685448542,-3074.72,0.00011292,2]
[347320491,1735685448551,-500.0,0.00011292,2]
[347320492,1735685448561,-2535.19,0.00011292,2]
[347320493,1735685448570,-500.0,0.00011292,2]
[347320494,1735685448579,-3580.36,0.00011292,2]
[347320495,1735685448589,-500.0,0.00011292,2]
[347320496,1735685448598,-500.0,0.00011292,2]
[347320497,1735685448607,-500.0,0.00011292,2]
[347320498,1735685448616,-27550.23,0.00011292,2]
[347320499,1735685448625,-500.0,0.00011292,2]
[347320500,1735685448634,-3356.7,0.00011292,2]
[347320501,1735685448643,-500.0,0.00011292,2]
[347320502,1735685448652,-16471.79,0.00011292,2]
[347320503,1735685448661,-571.15,0.00011292,2]
[347320504,1735685448670,-500.0,0.00011292,2]
[347320505,1735685448679,-500.0,0.00011292,2]
[347320506,1735685448688,-363.27769425,0.00011292,2]
[347320507,1735685448704,-136.72230575,0.00011292,2]
[347320508,1735685448713,-2808.84,0.00011292,2]
[347320509,1735685448723,-3892.24,0.00011292,2]
[347320510,1735685448732,-500.0,0.00011292,2]
[347320511,1735685448746,-5266.38,0.00011292,2]
[347320512,1735685448755,-500.0,0.00011292,2]
[347320513,1735685448764,-500.0,0.00011292,2]
[347320514,1735685448774,-500.0,0.00011292,2]
[347320515,1735685448784,-759.26,0.00011292,2]
[347320516,1735685448793,-500.0,0.00011292,2]
[347320517,1735685448802,-4967.74,0.00011292,2]
[347320518,1735685448812,-500.0,0.00011292,2]
[347320519,1735685448821,-21245.65,0.00011292,2]
[347320520,1735685448831,-500.0,0.00011292,2]
[347320521,1735685448840,-17083.62,0.00011292,2]
[347320522,1735685448849,-1669.65,0.00011292,2]
[347320523,1735685448858,-500.0,0.00011292,2]
[347320524,1735685448867,-657.07,0.00011292,2]
[347320525,1735685448876,-500.0,0.00011292,2]
[347320526,1735685448885,-500.0,0.00011292,2]
[347320527,1735685448895,-918.99,0.00011293,2]
[347320528,1735685448904,-2291.94,0.00011293,2]
[347320529,1735685448913,-1695.55,0.00011293,2]
[347320530,1735685448922,-1451.83,0.00011293,2]
[347320531,1735685448931,-500.0,0.00011293,2]
[347320532,1735685448942,-500.0,0.00011293,2]
[347320533,1735685448951,-500.0,0.00011293,2]
[347320534,1735685448961,-3027.31,0.00011293,2]
[347320535,1735685448970,-1213.07,0.00011293,2]
[347320536,1735685448979,-500.0,0.00011293,2]
[347320537,1735685448988,-500.0,0.00011293,2]
[347320538,1735685448997,-495.44274682,0.00011293,2]
[347320539,1735685449006,-1698.27,0.00011293,2]
[347320540,1735685449015,-1559.44,0.00011293,2]
[347320541,1735685449024,-500.0,0.00011293,2]
[347320542,1735685449033,-3060.26,0.00011293,2]
[347320543,1735685449042,-500.0,0.00011293,2]
[347320544,1735685449051,-1261.05,0.00011293,2]
[347320545,1735685449060,-1190.8,0.00011293,2]
[347320546,1735685449070,-500.0,0.00011293,2]
[347320547,1735685449079,-500.0,0.00011293,2]
[347320548,1735685449088,-1206.14,0.00011293,2]
[347320549,1735685449097,-1118.42,0.00011293,2]
[347320550,1735685449106,-500.0,0.00011293,2]
[347320551,1735685449115,-1758.67,0.00011293,2]
[347320552,1735685449124,-500.0,0.00011293,2]
[347320553,1735685449133,-500.0,0.00011293,2]
[347320554,1735685449142,-500.0,0.00011293,2]
[347320555,1735685449151,-862.31,0.00011293,2]
[347320556,1735685449160,-500.0,0.00011293,2]
[347320557,1735685449169,-786.04,0.00011293,2]
[347320558,1735685449178,-562.07,0.00011293,2]
[347320559,1735685449187,-500.0,0.00011293,2]
[347320560,1735685449196,-1892.59,0.00011293,2]
[347320561,1735685449205,-814.2,0.00011293,2]
[347320562,1735685449214,-500.0,0.00011293,2]
[347320563,1735685449223,-500.0,0.00011293,2]
[347320564,1735685449233,-500.0,0.00011293,2]
[347320565,1735685449242,-500.0,0.00011293,2]
[347320566,1735685449251,-1755.72,0.00011293,2]
[347320567,1735685449260,-500.0,0.00011293,2]
[347320568,1735685449270,-500.0,0.00011293,2]
[347320569,1735685449279,-1540.2,0.00011293,2]
[347320570,1735685449289,-500.0,0.00011293,2]
[347320571,1735685449298,-500.0,0.00011293,2]
[347320572,1735685449308,-500.0,0.00011293,2]
[347320573,1735685449317,-1664.55,0.00011293,2]
[347320574,1735685449326,-1196.86,0.00011293,2]
[347320575,1735685449336,-1827.49,0.00011293,2]
[347320576,1735685449345,-500.0,0.00011293,2]
[347320577,1735685449354,-1619.39,0.00011293,2]
[347320578,1735685449364,-500.0,0.00011293,2]
[347320579,1735685449373,-948.78,0.00011293,2]
[347320580,1735685449382,-1262.54,0.00011293,2]
[347320581,1735685449391,-500.0,0.00011293,2]
[347320582,1735685449400,-500.0,0.00011293,2]
[347320583,1735685449409,-2125.1,0.00011293,2]
[347320584,1735685449418,-1043.55,0.00011293,2]
[347320585,1735685449427,-500.0,0.00011293,2]
[347320586,1735685449436,-1277.12,0.00011293,2]
[347320587,1735685449445,-500.0,0.00011293,2]
[347320588,1735685449455,-548.16016573,0.00011293,2]
[347320589,1735685449464,-500.0,0.00011293,2]
[347320590,1735685449474,-3293.47,0.00011293,2]
[347320591,1735685449483,-3196.24,0.00011293,2]
[347320592,1735685449492,-500.0,0.00011293,2]
[347320593,1735685449501,-500.0,0.00011293,2]
[347320594,1735685449510,-693.44,0.00011293,2]
[347320595,1735685449519,-1111.99,0.00011293,2]
[347320596,1735685449529,-1202.08,0.00011293,2]
[347320597,1735685449538,-693.6,0.00011293,2]
[347320598,1735685449547,-500.0,0.00011293,2]
[347320599,1735685449556,-1081.89,0.00011293,2]
[347320600,1735685449566,-1538.17,0.00011293,2]
[347320601,1735685449575,-594.55,0.00011293,2]
[347320602,1735685449585,-500.0,0.00011293,2]
[347320603,1735685449594,-1626.34,0.00011293,2]
[347320604,1735685449603,-500.0,0.00011293,2]
[347320605,1735685449612,-540.17844215,0.00011293,2]
[347320606,1735685449621,-500.0,0.00011293,2]
[347320607,1735685449631,-500.0,0.00011293,2]
[347320608,1735685449640,-500.0,0.00011293,2]
[347320609,1735685449649,-500.0,0.00011293,2]
[347320610,1735685449658,-924.86,0.00011293,2]
[347320611,1735685449667,-500.0,0.00011293,2]
[347320612,1735685449676,-500.0,0.00011293,2]
[347320613,1735685449685,-500.0,0.00011293,2]
[347320614,1735685449694,-1667.56,0.00011293,2]
[347320615,1735685449703,-500.0,0.00011293,2]
[347320616,1735685449713,-685.97,0.00011293,2]
[347320617,1735685449723,-500.0,0.00011293,2]
[347320618,1735685449732,-2263.82,0.00011293,2]
[347320619,1735685449746,-5936.57,0.00011293,2]
[347320620,1735685449755,-500.0,0.00011293,2]
[347320621,1735685449764,-500.0,0.00011293,2]
[347320622,1735685449774,-1511.03,0.00011293,2]
[347320623,1735685449784,-709.39,0.00011293,2]
[347320624,1735685449793,-500.0,0.00011293,2]